fUSD/lending_fUSD_20250307
["ID","MTS","AMOUNT","RATE_DAILY","PERIOD"]
[355612657,1741378231884,-2032.0,9.179e-05,2]
[355612658,1741378231893,-1278.0,9.179e-05,2]
[355612659,1741378231903,-1459.0,9.179e-05,2]
[355612660,1741378231913,-81.97844183,9.179e-05,2]
[355612692,1741378232650,-489.02155817,9.179e-05,2]
[355612693,1741378232660,-367.97844183,9.179e-05,2]
[355612694,1741378232672,-273.02155817,9.179e-05,2]
[355612695,1741378232681,-702.60931007,9.179e-05,2]
[355612696,1741378232693,-83.39068993,9.179e-05,2]
[355612697,1741378232702,-453.31917741,9.179e-05,2]
[355612699,1741378237527,-405.17512303,9.179e-05,2]
[355612700,1741378237619,-410.50569956,9.179e-05,2]
[355612701,1741378237628,-738.791,9.179e-05,2]
[355612702,1741378237637,-327.12330044,9.179e-05,2]
[355612703,1741378237674,-219.47169956,9.179e-05,2]
[355612704,1741378237683,-590.5953003,9.181e-05,2]
[355612705,1741378237731,-833.4046997,9.181e-05,2]
[355612706,1741378237741,-150.0,9.181e-05,2]
[355612707,1741378237752,-3931.0,9.181e-05,2]
[355612708,1741378237763,-1012.0,9.181e-05,2]
[355612709,1741378237774,-217.21,9.187e-05,2]
[355612710,1741378237784,-217.21,9.22e-05,2]
[355612711,1741378237794,-217.21,9.253e-05,2]
[355612712,1741378237804,-217.21,9.286e-05,2]
[355612713,1741378237815,-217.21,9.319e-05,2]
[355612714,1741378237824,-217.21,9.352e-05,2]
[355612715,1741378237834,-217.21,9.385e-05,2]
[355612716,1741378237843,-217.21,9.418e-05,2]
[355612717,1741378237852,-1061.0,9.422e-05,2]
[355612718,1741378237861,-217.21,9.451e-05,2]
[355612719,1741378237873,-217.21,9.484e-05,2]
[355612720,1741378237883,-1000.0,9.496e-05,2]
[355612721,1741378237892,-217.21,9.516e-05,2]
[355612722,1741378237901,-217.21,9.549e-05,2]
[355612723,1741378237913,-217.21,9.582e-05,2]
[355612724,1741378237922,-1400.0,9.59e-05,2]
[355612725,1741378237931,-500.0,9.59e-05,2]
[355612726,1741378237940,-500.0,9.59e-05,2]
[355612728,1741378237952,-1682.0,9.7e-05,2]
[355612730,1741378237962,-2005.346,9.899e-05,2]
[355612732,1741378237972,-172.24,9.899e-05,2]
[355612734,1741378237982,-1000.0,9.9e-05,2]
[355612736,1741378237991,-13329.463,9.9e-05,2]
[355612738,1741378238001,-297.4374,9.9e-05,2]
[355612740,1741378238011,-275.8124,9.9e-05,2]
[355612742,1741378238021,-5000.0,9.9e-05,2]
[355612744,1741378238030,-11194.3395041,9.9e-05,2]
[355612746,1741378238040,-1061.0,9.918e-05,2]
[355612748,1741378238049,-160.31065914,9.973e-05,2]
[355612750,1741378238058,-197.38349905,9.973e-05,2]
[355612752,1741378238067,-1989.77,9.999e-05,2]
[355612754,1741378238076,-422.70640624,9.999e-05,2]
[355612755,1741378238086,-500.0,9.999e-05,2]
[355612757,1741378238095,-200.87599274,9.999e-05,2]
[355612759,1741378238105,-743.0,0.0001,2]
[355612762,1741378238115,-62293.10349784,0.0001,2]
[355612764,1741378238127,-17565.02320001,0.0001,2]
[355612766,1741378238138,-424.538785,0.0001,2]
[355612771,1741378238170,-3785.29063338,0.0001,2]
[355612773,1741378238181,-1629.83238255,0.0001,2]
[355612775,1741378238193,-713666.16182142,0.0001,2]
[355612777,1741378238203,-6586.29727959,0.0001,2]
[355612779,1741378238214,-555.26247137,0.0001,2]
[355612918,1741378239807,-1104.1250125,0.0001,2]
[355612919,1741378239866,-0.00138873,0.0001,2]
[355612920,1741378239959,-68463.03336241,0.0001,2]
[355612921,1741378239971,-305.764,0.0001,2]
[355612922,1741378240183,-323.64717706,0.0001,2]
[355612923,1741378240230,-165.97451726,0.0001,2]
[355612924,1741378240263,-3507.59639695,0.0001,2]
[355612925,1741378240275,-2838.78499998,0.0001,2]
[355612932,1741378244708,-5000.0,9.9e-05,2]
[355612933,1741378244718,-597.451595,0.0001,2]
[355612934,1741378245638,-620.81914915,0.0001,2]
[355612935,1741378245649,-74033.66107,0.0001,2]
[355612936,1741378245797,-64246.11526631,0.0001,2]
[355612937,1741378245903,-44515.16443358,0.0001,2]
[355612939,1741378324479,-200.0,8.524e-05,2]
[355612940,1741378788642,-150.0,8.524e-05,3]
[355612958,1741379431868,-150.0,8.189e-05,2]
[355612959,1741379431878,-150.0,8.19e-05,2]
[355612960,1741379431887,-257.09,8.19e-05,2]
[355612961,1741379431899,-8793.367682,8.19e-05,2]
[355612962,1741379431910,-2464.0136625,8.19e-05,2]
[355612963,1741379431924,-4861.51111411,8.19e-05,2]
[355612964,1741379431940,-927.62237978,8.19e-05,2]
[355612965,1741379431954,-2096.0,8.19e-05,2]
[355612966,1741379432040,-4100.0,8.19e-05,2]
[355612975,1741379437839,-1117.999961,8.19e-05,2]
[355612976,1741379437898,-2282.51801032,8.19e-05,2]
[355612977,1741379437910,-3892.44757344,8.19e-05,2]
[355612978,1741379437957,-1092.76717894,8.19e-05,2]
[355612979,1741379438030,-1176.149,8.19e-05,2]
[355612980,1741379438042,-8808.52199999,8.19e-05,2]
[355613197,1741379440214,-1156.12759235,8.19e-05,2]
[355613200,1741379440225,-6779.0951,8.19e-05,2]
[355613202,1741379440236,-10342.85860827,8.19e-05,2]
[355613204,1741379440248,-14499.99999842,8.19e-05,2]
[355613213,1741379440341,-74410.72583923,8.19e-05,2]
[355613215,1741379440351,-150.0,8.208e-05,2]
[355613217,1741379440362,-1965.71,8.219e-05,2]
[355613219,1741379440371,-1300.0,8.22e-05,2]
[355613221,1741379440381,-154.0,8.524e-05,3]
[355613222,1741379440390,-159.0,8.524e-05,3]
[355613224,1741379440400,-500.0,8.524e-05,2]
[355613226,1741379440410,-500.0,8.524e-05,2]
[355613228,1741379440420,-177.5,8.545e-05,2]
[355613230,1741379440430,-1000.0,8.61e-05,2]
[355613232,1741379440439,-314.04,8.61e-05,2]
[355613234,1741379440449,-200.0,8.768e-05,2]
[355613236,1741379440458,-153.67,8.818e-05,2]
[355613238,1741379440467,-6754.38566338,9e-05,2]
[355613240,1741379440476,-150.0,9.008e-05,2]
[355613242,1741379440486,-255.0,9.008e-05,2]
[355613244,1741379440495,-167.6,9.031e-05,2]
[355613246,1741379440504,-202.0,9.07e-05,2]
[355613248,1741379440514,-1466.14,9.097e-05,2]
[355613250,1741379440523,-1050.78,9.098e-05,2]
[355613251,1741379440532,-250.0,9.108e-05,2]
[355613253,1741379440542,-160.7,9.17e-05,2]
[355613255,1741379440551,-157.3,9.177e-05,2]
[355613257,1741379440560,-154.0,9.233e-05,3]
[355613259,1741379440569,-202.0,9.3e-05,2]
[355613261,1741379440580,-244.403,9.359e-05,2]
[355613263,1741379440589,-1278.0,9.359e-05,2]
[355613265,1741379440599,-2032.0,9.359e-05,2]
[355613267,1741379440610,-196.55,9.359e-05,2]
[355613269,1741379440619,-196.55,9.359e-05,2]
[355613271,1741379440629,-196.55,9.359e-05,2]
[355613274,1741379440648,-196.55,9.359e-05,2]
[355613276,1741379440659,-196.55,9.359e-05,2]
[355613278,1741379440668,-196.55,9.359e-05,2]
[355613280,1741379440678,-196.55,9.359e-05,2]
[355613282,1741379440687,-196.55,9.359e-05,2]
[355613283,1741379440696,-196.55,9.359e-05,2]
[355613285,1741379440706,-196.55,9.359e-05,2]
[355613287,1741379440715,-3931.0,9.359e-05,2]
[355613288,1741379440725,-150.0,9.359e-05,2]
[355613289,1741379440734,-202.0,9.53e-05,2]
[355613290,1741379440743,-1300.0,9.59e-05,2]
[355613291,1741379440753,-250.0,9.638e-05,2]
[355613292,1741379440762,-1000.0,9.686e-05,2]
[355613293,1741379440771,-1507.0,9.7e-05,2]
[355613294,1741379440780,-202.0,9.77e-05,2]
[355613295,1741379440790,-167.6,9.776e-05,2]
[355613296,1741379440799,-2268.501,9.894e-05,2]
[355613297,1741379440809,-500.0,9.894e-05,2]
[355613298,1741379440818,-500.0,9.894e-05,2]
[355613299,1741379440829,-22688.20617,9.9e-05,2]
[355613300,1741379440839,-5000.0,9.9e-05,2]
[355613301,1741379440848,-314.0,9.909e-05,2]
[355613302,1741379440857,-154.0,9.943e-05,3]
[355613304,1741379440867,-2137.0815748,9.964e-05,2]
[355613306,1741379440876,-4968.0,9.973e-05,2]
[355613308,1741379440885,-155.78767783,9.973e-05,2]
[355613310,1741379440895,-1940.81,9.999e-05,2]
[355613312,1741379440904,-1923.128222,9.999e-05,2]
[355613314,1741379440913,-4256.138352,9.999e-05,2]
[355613316,1741379440923,-93066.03853354,9.999e-05,2]
[355613318,1741379440932,-1000.0,9.999e-05,2]
[355613320,1741379440942,-1000.0,9.999e-05,2]
[355613322,1741379440951,-1000.0,9.999e-05,2]
[355613324,1741379440960,-625.19872929,9.999e-05,2]
[355613326,1741379440970,-764.0,0.0001,2]
[355613328,1741379440979,-2445783.63422621,0.0001,2]
[355613330,1741379440989,-3817235.57080839,0.0001,2]
[355613331,1741379441108,-503.02501862,0.0001,2]
[355613332,1741379441120,-1782.38112047,0.0001,2]
[355613333,1741379441134,-2240.4431937,0.0001,2]
[355613362,1741379444137,-2236.7275732,0.0001,2]
[355613363,1741379446077,-1000.0,9.999e-05,2]
[355613364,1741379446089,-473.28750779,0.0001,2]
[355613365,1741379505168,-200.00190678,8.524e-05,2]
[355613366,1741379582396,-159.34,8.524e-05,2]
[355613368,1741380171711,-520.53,8.219e-05,2]
[355613369,1741380302167,-253.15,8.219e-05,2]
[355613370,1741380304954,-438.33,8.219e-05,2]
[355613380,1741380580598,-300.0,8.219e-05,2]
[355613394,1741380632048,-396.17,8.219e-05,2]
[355613395,1741380632057,-150.0,8.348e-05,2]
[355613396,1741380632067,-840.62,8.467e-05,2]
[355613397,1741380632076,-253.15,8.477e-05,2]
[355613398,1741380632085,-195.0001492,8.524e-05,2]
[355613399,1741380632094,-154.0,8.524e-05,3]
[355613400,1741380632103,-500.0,8.524e-05,2]
[355613401,1741380632112,-500.0,8.524e-05,2]
[355613402,1741380632122,-1200.0,8.524e-05,2]
[355613403,1741380632133,-1852.42,8.554e-05,2]
[355613404,1741380632143,-1000.0,8.665e-05,2]
[355613405,1741380632152,-200.0,8.716e-05,2]
[355613406,1741380632161,-405.31,8.75e-05,2]
[355613407,1741380632170,-250.0,8.911e-05,2]
[355613408,1741380632181,-174.25,9.005e-05,2]
[355613409,1741380632192,-150.0,9.041e-05,2]
[355613410,1741380632201,-150.0,9.041e-05,2]
[355613411,1741380632211,-159.13,9.058e-05,2]
[355613412,1741380632220,-444.05,9.079e-05,2]
[355613413,1741380632230,-222.522192,9.092e-05,2]
[355613414,1741380632240,-165.01,9.095e-05,2]
[355613415,1741380632250,-159.13,9.138e-05,2]
[355613416,1741380632259,-159.13,9.217e-05,2]
[355613417,1741380632268,-159.13,9.296e-05,2]
[355613418,1741380632278,-154.0,9.366e-05,3]
[355613419,1741380632289,-159.13,9.375e-05,2]
[355613420,1741380632299,-159.13,9.455e-05,2]
[355613421,1741380632308,-840.62,9.525e-05,2]
[355613422,1741380632318,-163.793,9.525e-05,2]
[355613423,1741380632326,-163.793,9.525e-05,2]
[355613424,1741380632335,-163.793,9.525e-05,2]
[355613425,1741380632345,-159.13,9.534e-05,2]
[355613426,1741380632354,-150.0,9.534e-05,2]
[355613427,1741380632363,-307.434,9.539e-05,2]
[355613428,1741380632372,-2032.0,9.539e-05,2]
[355613429,1741380632384,-571.0,9.539e-05,2]
[355613430,1741380632393,-1459.0,9.539e-05,2]
[355613431,1741380632403,-641.0,9.539e-05,2]
[355613432,1741380632412,-802.227,9.539e-05,2]
[355613433,1741380632421,-3931.0,9.539e-05,2]
[355613434,1741380632431,-150.0,9.539e-05,2]
[355613436,1741380632440,-159.13,9.613e-05,2]
[355613438,1741380632450,-159.13,9.692e-05,2]
[355613467,1741380632623,-1000.0,9.748e-05,2]
[355613469,1741380632637,-500.0,9.894e-05,2]
[355613472,1741380632651,-500.0,9.894e-05,2]
[355613474,1741380632660,-1200.0,9.894e-05,2]
[355613476,1741380632670,-2135.6676588,9.9e-05,2]
[355613478,1741380632682,-713.47296699,9.9e-05,2]
[355613481,1741380632704,-1800.0,9.9e-05,2]
[355613485,1741380632731,-350.85937421,9.9e-05,2]
[355613486,1741380632741,-966.22057602,9.9e-05,2]
[355613490,1741380632765,-659.36537853,9.9e-05,2]
[355613492,1741380632775,-4895.712,9.9e-05,2]
[355613556,1741380638420,-638.94000003,9.539e-05,2]
[355613557,1741380638431,-495.78399997,9.539e-05,2]
[355613558,1741380638441,-1624.21600003,9.9e-05,2]
[355613559,1741380638468,-445.4455761,9.9e-05,2]
[355613560,1741380638487,-420.98266866,9.9e-05,2]
[355613561,1741380638498,-437.775,9.9e-05,2]
[355613562,1741380638510,-3226.75732379,9.9e-05,2]
[355613563,1741380638521,-528.04092757,9.9e-05,2]
[355613566,1741380640110,-260.426166,9.9e-05,2]
[355613567,1741380640123,-14757.6916833,9.9e-05,2]
[355613568,1741380640135,-1000.0,9.999e-05,2]
[355613569,1741380640144,-1000.0,9.999e-05,2]
[355613570,1741380640154,-1859.94,9.999e-05,2]
[355613571,1741380640164,-500.0,9.999e-05,2]
[355613572,1741380640174,-297.6391105,9.999e-05,2]
[355613573,1741380640184,-592.77522616,0.0001,2]
[355613574,1741380640195,-313.22477384,0.0001,2]
[355613575,1741380640205,-256.31356777,0.0001,2]
[355613576,1741380640351,-253.02472612,0.0001,2]
[355613577,1741380640385,-1659.56885178,0.0001,2]
[355613578,1741380640396,-787.36,0.0001,2]
[355613579,1741380640408,-2295.0,0.0001,2]
[355613580,1741380640440,-525086.40040645,0.0001,2]
[355613581,1741380640505,-2144.09999998,0.0001,2]
[355613603,1741380643037,-1385.33189711,0.0001,2]
[355613616,1741380644275,-250.14744095,0.0001,2]
[355613617,1741380644291,-470.15200142,0.0001,2]
[355613618,1741380644302,-840.48445231,0.0001,2]
[355613619,1741380644313,-453.349041,0.0001,2]
[355613620,1741380644337,-4586.14022701,0.0001,2]
[355613621,1741380644349,-8624.5,0.0001,2]
[355613636,1741380645979,-4244.39999989,0.0001,2]
[355613662,1741380646332,-405.95321903,0.0001,2]
[355613663,1741380646356,-4630.65371731,0.0001,2]
[355613665,1741380902665,166.0,0.0001,30]
[355613666,1741380902961,166.0,0.000124,30]
[355613667,1741381256263,-359.33269334,8.219e-05,2]
[355613689,1741381832157,-387.13222533,8.219e-05,2]
[355613690,1741381832216,-692.5626787,8.219e-05,2]
[355613691,1741381832227,-410.41240263,8.219e-05,2]
[355613692,1741381832237,-744.4,8.52e-05,2]
[355613693,1741381832246,-216.70341304,8.52e-05,2]
[355613694,1741381832256,-500.0,8.524e-05,2]
[355613695,1741381832265,-500.0,8.524e-05,2]
[355613696,1741381832275,-1200.0,8.524e-05,2]
[355613697,1741381832284,-488.12,8.562e-05,2]
[355613698,1741381832293,-554.51,8.565e-05,2]
[355613699,1741381832303,-1000.0,8.579e-05,2]
[355613700,1741381832313,-200.0,8.595e-05,2]
[355613701,1741381832322,-250.0,8.645e-05,2]
[355613702,1741381832332,-164.92,8.647e-05,2]
[355613703,1741381832341,-431.34,8.647e-05,2]
[355613704,1741381832351,-5308.09415433,8.995e-05,2]
[355613705,1741381832376,-405.4,8.995e-05,2]
[355613706,1741381832387,-362.03153926,8.995e-05,2]
[355613707,1741381832399,-2538.36573958,8.995e-05,2]
[355613708,1741381832408,-550.0,9.041e-05,2]
[355613709,1741381832418,-150.0,9.041e-05,2]
[355613710,1741381832427,-150.0,9.041e-05,2]
[355613711,1741381832436,-151.93,9.105e-05,2]
[355613712,1741381832445,-291.63923713,9.116e-05,2]
[355613713,1741381832457,-8.36076287,9.116e-05,2]
[355613714,1741381832467,-300.0,9.126e-05,2]
[355613715,1741381832476,-151.93,9.143e-05,2]
[355613716,1741381832485,-738.40671213,9.178e-05,2]
[355613717,1741381832497,-251.81328787,9.178e-05,2]
[355613718,1741381832506,-875.34771213,9.178e-05,2]
[355613719,1741381832517,-114.87228787,9.178e-05,2]
[355613720,1741381832527,-990.22,9.178e-05,2]
[355613721,1741381832536,-151.93,9.18e-05,2]
[355613722,1741381832545,-151.93,9.218e-05,2]
[355613723,1741381832555,-151.93,9.255e-05,2]
[355613724,1741381832565,-151.93,9.293e-05,2]
[355613725,1741381832574,-151.93,9.33e-05,2]
[355613726,1741381832583,-151.93,9.368e-05,2]
[355613727,1741381832593,-150.0,9.405e-05,2]
[355613728,1741381832602,-151.93,9.405e-05,2]
[355613729,1741381832616,-151.93,9.443e-05,2]
[355613730,1741381832626,-151.93,9.48e-05,2]
[355613731,1741381832636,-151.93,9.518e-05,2]
[355613732,1741381832646,-985.294,9.539e-05,2]
[355613733,1741381832656,-1459.0,9.539e-05,2]
[355613734,1741381832666,-641.0,9.539e-05,2]
[355613735,1741381832675,-571.0,9.541e-05,2]
[355613736,1741381832685,-150.0,9.541e-05,2]
[355613738,1741381832695,-3931.0,9.541e-05,2]
[355613740,1741381832704,-1113.0,9.541e-05,2]
[355613742,1741381832713,-151.93,9.555e-05,2]
[355613744,1741381832722,-151.93,9.593e-05,2]
[355613746,1741381832731,-151.93,9.63e-05,2]
[355613748,1741381832741,-488.12,9.633e-05,2]
[355613750,1741381832750,-1000.0,9.651e-05,2]
[355613752,1741381832760,-151.93,9.667e-05,2]
[355613753,1741381832769,-151.93,9.705e-05,2]
[355613755,1741381832779,-151.93,9.742e-05,2]
[355613757,1741381832789,-1010.14944756,9.8e-05,2]
[355613758,1741381832798,-2062.675,9.855e-05,2]
[355613760,1741381832807,-4479.72144999,9.89e-05,2]
[355613762,1741381832816,-500.0,9.894e-05,2]
[355613764,1741381832825,-500.0,9.894e-05,2]
[355613766,1741381832835,-1200.0,9.894e-05,2]
[355613768,1741381832844,-416.5546,9.9e-05,2]
[355613770,1741381832853,-406.39,9.9e-05,2]
[355613772,1741381832866,-1000.0,9.9e-05,2]
[355613774,1741381832877,-5000.0,9.9e-05,2]
[355613776,1741381832886,-12718.39821459,9.9e-05,2]
[355613779,1741381832909,-67368.40904212,9.9e-05,2]
[355613781,1741381832920,-1124.47756739,9.907e-05,2]
[355613783,1741381832929,-101996.00275614,9.973e-05,2]
[355613786,1741381832946,-660.68397075,9.973e-05,2]
[355613788,1741381832962,-1450.70285295,9.973e-05,2]
[355613789,1741381832973,-512.61042016,9.973e-05,2]
[355613790,1741381832983,-1360.01842803,9.999e-05,3]
[355613791,1741381832992,-1015.8621,9.999e-05,2]
[355613792,1741381833001,-69.20905181,9.999e-05,2]
[355613793,1741381833013,-295.97896799,9.999e-05,2]
[355613794,1741381833032,-634.8119802,9.999e-05,2]
[355613795,1741381833043,-604.79948188,9.999e-05,3]
[355613796,1741381833053,-3872.39978572,9.999e-05,2]
[355613797,1741381833067,-1994.36,9.999e-05,2]
[355613798,1741381833076,-500.0,9.999e-05,2]
[355613799,1741381833085,-500.0,9.999e-05,2]
[355613800,1741381833095,-500.0,9.999e-05,2]
[355613801,1741381833106,-500.0,9.999e-05,2]
[355613802,1741381833120,-500.0,9.999e-05,2]
[355613803,1741381833130,-500.0,9.999e-05,2]
[355613804,1741381833141,-241.05486357,9.999e-05,2]
[355613805,1741381833151,-500.0,9.999e-05,2]
[355613806,1741381833160,-500.0,9.999e-05,2]
[355613807,1741381833170,-293.2900071,9.999e-05,2]
[355613808,1741381833180,-450.0,9.999e-05,2]
[355613809,1741381833190,-564.73347217,9.999e-05,2]
[355613810,1741381833200,-280.47972592,9.999e-05,2]
[355613811,1741381833210,-925.0,0.0001,2]
[355613812,1741381833221,-74393.80538544,0.0001,2]
[355613813,1741381833234,-323.34551299,0.0001,2]
[355613817,1741381838158,-398.89694603,0.0001,2]
[355613818,1741381838350,-432.785,0.0001,2]
[355613819,1741381838370,-478.31805397,0.0001,2]
[355613820,1741381838380,-8.85194603,0.0001,2]
[355613821,1741381838393,-640.97,0.0001,2]
[355613822,1741381838405,-167568.62959455,0.0001,2]
[355613823,1741381838417,-2591.115,0.0001,2]
[355613824,1741381838433,-2064.2826,0.0001,2]
[355613825,1741381838465,-1662657.191005,0.0001,2]
[355613834,1741381840265,-173874.82170151,0.0001,2]
[355613835,1741381840289,-815410.5788543,0.0001,2]
[355613836,1741381840304,-109103.26335898,0.0001,2]
[355613837,1741381840489,-3479.88199224,0.0001,2]
[355613838,1741381840577,-853.6822077,0.0001,2]
[355613839,1741381840596,-953.876924,0.0001,2]
[355613840,1741381840614,-2164.10086932,0.0001,2]
[355613841,1741381840636,-444.03129,0.0001,2]
[355613842,1741381840654,-3474.02805815,0.0001,2]
[355613894,1741381843604,-990.22,9.178e-05,2]
[355613895,1741381843613,-1184.0,0.0001,2]
[355613896,1741381843626,-2361.34541043,0.0001,2]
[355613897,1741381843638,-1645.8934959,0.0001,2]
[355613898,1741381843648,-1718.02,0.0001,2]
[355613905,1741381843766,-261.261,0.0001,2]
[355613907,1741381843778,-664.08382581,0.0001,2]
[355613913,1741381843830,-466.73457934,0.0001,2]
[355613978,1741381845280,-935.39771555,0.0001,2]
[355613979,1741381845307,-2669.26,0.0001,2]
[355613980,1741381845344,-152771.75455005,0.0001,2]
[355613981,1741381845355,-6727.49780545,0.0001,2]
[355614101,1741381847313,-433.72608774,0.0001,2]
[355614102,1741381847331,-4328.53588,0.0001,2]
[355614103,1741381847919,-475.72044319,0.0001,2]
[355614104,1741381847931,-1214.87960272,0.0001,2]
[355614105,1741381847952,-952.40524904,0.0001,2]
[355614106,1741381847963,-3877.50163204,0.0001,2]
[355614107,1741381979444,500.0,0.00020111,120]
[355614108,1741382722443,-171.69,8.219e-05,2]
[355614109,1741382757322,166.0,0.0001,30]
[355614118,1741382942651,-171.69,8.189e-05,2]
[355614128,1741383032536,-300.0,8.189e-05,2]
[355614129,1741383032546,-188.29055819,8.19e-05,2]
[355614130,1741383032655,-405.70529999,8.19e-05,2]
[355614136,1741383038450,-17307.94399811,8.19e-05,2]
[355614160,1741383040530,-1282.83386885,8.19e-05,2]
[355614161,1741383040600,-434.55610596,8.19e-05,2]
[355614162,1741383040667,-428.65542188,8.19e-05,2]
[355614163,1741383040679,-4836.16850524,8.19e-05,2]
[355614164,1741383040690,-2513.68636215,8.19e-05,2]
[355614165,1741383040738,-1384.21661412,8.19e-05,2]
[355614216,1741383043999,-2480.58,8.19e-05,2]
[355614244,1741383046779,-3122.60406618,8.19e-05,2]
[355614245,1741383046864,-4406.25,8.19e-05,2]
[355614246,1741383046875,-1481.90606228,8.19e-05,2]
[355614247,1741383046887,-1652.26284913,8.19e-05,2]
[355614248,1741383046898,-3137.20073785,8.19e-05,2]
[355614249,1741383046907,-1616.4,8.219e-05,2]
[355614250,1741383046916,-500.0,8.524e-05,2]
[355614251,1741383046925,-500.0,8.524e-05,2]
[355614252,1741383046934,-1100.0,8.524e-05,2]
[355614253,1741383046947,-300.0,8.593e-05,2]
[355614254,1741383046956,-504.37,8.602e-05,2]
[355614255,1741383046965,-359.46,8.677e-05,2]
[355614256,1741383046973,-444.86926215,8.717e-05,2]
[355614257,1741383046994,-555.13073785,8.717e-05,2]
[355614258,1741383047003,-500.0,8.822e-05,2]
[355614259,1741383047013,-250.0,8.899e-05,2]
[355614260,1741383047023,-420.0,9.008e-05,2]
[355614261,1741383047031,-150.0,9.009e-05,2]
[355614262,1741383047040,-160.28,9.158e-05,2]
[355614263,1741383047049,-160.28,9.217e-05,2]
[355614264,1741383047062,-8506.22,9.238e-05,2]
[355614265,1741383047071,-522.0,9.25e-05,2]
[355614266,1741383047081,-160.28,9.275e-05,2]
[355614267,1741383047091,-160.28,9.333e-05,2]
[355614268,1741383047100,-990.22,9.378e-05,2]
[355614269,1741383047109,-1975.75,9.378e-05,2]
[355614270,1741383047118,-160.28,9.391e-05,2]
[355614271,1741383047127,-160.28,9.45e-05,2]
[355614272,1741383047136,-522.0,9.47e-05,2]
[355614273,1741383047145,-160.28,9.508e-05,2]
[355614274,1741383047154,-150.0,9.562e-05,7]
[355614275,1741383047163,-160.28,9.566e-05,2]
[355614276,1741383047172,-160.28,9.624e-05,2]
[355614277,1741383047181,-250.0,9.64e-05,2]
[355614278,1741383047193,-504.37,9.678e-05,2]
[355614279,1741383047202,-160.28,9.683e-05,2]
[355614280,1741383047211,-522.0,9.69e-05,2]
[355614281,1741383047220,-3931.0,9.719e-05,2]
[355614282,1741383047230,-150.0,9.719e-05,2]
[355614283,1741383047239,-1109.0,9.719e-05,2]
[355614284,1741383047248,-160.28,9.741e-05,2]
[355614285,1741383047258,-160.28,9.799e-05,2]
[355614286,1741383047268,-1000.0,9.807e-05,2]
[355614287,1741383047279,-1650.14,9.894e-05,2]
[355614288,1741383047289,-500.0,9.894e-05,2]
[355614289,1741383047300,-1100.0,9.894e-05,2]
[355614290,1741383047310,-165.085,9.894e-05,2]
[355614291,1741383047320,-26222.4795,9.9e-05,2]
[355614292,1741383047332,-5000.0,9.9e-05,2]
[355614293,1741383047342,-4352.20000003,9.9e-05,2]
[355614294,1741383047351,-57126.46576212,9.9e-05,2]
[355614295,1741383047375,-2860.0,9.9e-05,2]
[355614296,1741383047387,-427.02659999,9.9e-05,2]
[355614312,1741383696017,-500.0,8.524e-05,2]
[355614313,1741383696040,-500.0,8.524e-05,2]
[355614314,1741383696062,-1000.0,8.524e-05,2]
[355614315,1741383696085,-150.0,8.771e-05,2]
[355614316,1741383696108,-850.0,8.978e-05,2]
[355614321,1741383903201,167.0,9.9e-05,30]
[355614323,1741384105830,-1698.68,8.219e-05,2]
[355614361,1741384231522,-338.50000238,8.524e-05,2]
[355614377,1741384231639,-352.29970274,8.524e-05,2]
[355614439,1741384237811,-209.20029488,8.524e-05,2]
[355614440,1741384237821,-250.0,8.839e-05,2]
[355614441,1741384237835,-292.87,8.885e-05,2]
[355614442,1741384237844,-150.0,8.978e-05,2]
[355614443,1741384237853,-265.57,8.987e-05,2]
[355614444,1741384237862,-164.92,9.019e-05,2]
[355614445,1741384237871,-200.0,9.05e-05,2]
[355614446,1741384237881,-2037.37,9.066e-05,2]
[355614447,1741384237890,-421.0,9.288e-05,2]
[355614449,1741384237899,-167.6,9.289e-05,2]
[355614450,1741384237908,-250.0,9.36e-05,2]
[355614451,1741384237917,-150.0,9.376e-05,2]
[355614452,1741384237926,-150.0,9.376e-05,2]
[355614453,1741384237935,-202.0,9.46e-05,2]
[355614454,1741384237943,-500.0,9.62e-05,2]
[355614455,1741384237952,-500.0,9.62e-05,2]
[355614456,1741384237961,-202.0,9.68e-05,2]
[355614457,1741384237969,-312.11160377,9.8e-05,2]
[355614458,1741384237978,-150.0,9.876e-05,2]